[Event "Titled Tuesday Blitz August 31 2021"]
[White "Csonka, Balazs"]
[Black "Hryshchenko, Kamila"]
[WhiteFideId "742910"]
[BlackFideId "14147491"]
[WhiteElo "2404"]
[BlackElo "1936"]
[Result "1-0"]
[Round "09"]
[TimeControl "180+1"]
[Date "2021.08.31"]
[WhiteClock "0:00:03"]
[BlackClock "0:00:05"]

1. e4 {[%clk 0:03:00]}  d5 {[%clk 0:02:57]} 2. exd5 {[%clk 0:03:00]}  Qxd5 {[%clk 0:02:58]} 3. Nc3 {[%clk 0:03:00]}  Qe5+ {[%clk 0:02:56]} 4. Be2 {[%clk 0:02:59]}  Bg4 {[%clk 0:02:56]} 5. d4 {[%clk 0:02:56]}  Bxe2 {[%clk 0:02:55]} 6. Ngxe2 {[%clk 0:02:55]}  Qa5 {[%clk 0:02:54]} 7. O-O {[%clk 0:02:52]}  Nf6 {[%clk 0:02:51]} 8. b4 {[%clk 0:02:38]}  Qh5 {[%clk 0:02:48]} 9. d5 {[%clk 0:02:28]}  e6 {[%clk 0:02:45]} 10. dxe6 {[%clk 0:02:20]}  Bxb4 {[%clk 0:02:43]} 11. Rb1 {[%clk 0:02:05]}  Nc6 {[%clk 0:02:39]} 12. exf7+ {[%clk 0:01:32]}  Qxf7 {[%clk 0:02:37]} 13. a3 {[%clk 0:01:32]}  Ba5 {[%clk 0:02:31]} 14. Be3 {[%clk 0:00:43]}  O-O {[%clk 0:02:13]} 15. Qd3 {[%clk 0:00:33]}  Bb6 {[%clk 0:02:10]} 16. Bxb6 {[%clk 0:00:25]}  axb6 {[%clk 0:02:10]} 17. a4 {[%clk 0:00:25]}  Rad8 {[%clk 0:02:02]} 18. Qf3 {[%clk 0:00:23]}  Qc4 {[%clk 0:02:01]} 19. Rfd1 {[%clk 0:00:16]}  Rde8 {[%clk 0:01:41]} 20. Qd3 {[%clk 0:00:15]}  Qh4 {[%clk 0:01:35]} 21. Qg3 {[%clk 0:00:15]}  Qc4 {[%clk 0:01:15]} 22. Qxc7 {[%clk 0:00:13]}  Rxe2 {[%clk 0:01:05]} 23. Nxe2 {[%clk 0:00:12]}  Qxe2 {[%clk 0:01:06]} 24. Qxb7 {[%clk 0:00:09]}  Ne5 {[%clk 0:00:53]} 25. Qxb6 {[%clk 0:00:08]}  Nfg4 {[%clk 0:00:41]} 26. Rf1 {[%clk 0:00:07]}  Qxc2 {[%clk 0:00:17]} 27. Qb3+ {[%clk 0:00:04]}  Qxb3 {[%clk 0:00:14]} 28. Rxb3 {[%clk 0:00:05]}  Ra8 {[%clk 0:00:13]} 29. Ra1 {[%clk 0:00:03]}  Nf6 {[%clk 0:00:12]} 30. a5 {[%clk 0:00:03]}  Nfd7 {[%clk 0:00:07]} 31. a6 {[%clk 0:00:03]}  Nc5 {[%clk 0:00:07]} 32. Rb5 {[%clk 0:00:02]}  Ned7 {[%clk 0:00:06]} 33. a7 {[%clk 0:00:03]}  Kf7 {[%clk 0:00:05]} 34. g3 {[%clk 0:00:03]}  Ke6 {[%clk 0:00:05]} 35. f4 {[%clk 0:00:03]}  Kd6 {[%clk 0:00:05]} 36. Kf2 {[%clk 0:00:03]}  Kc6 {[%clk 0:00:05]} 37. Rbb1 {[%clk 0:00:03]} 1-0


[Site "https://www.chess.com"]

[Event "Titled Tuesday Blitz August 31 2021"]
[White "Danielian, Vardan"]
[Black "Serikbay, Assel"]
[WhiteFideId "13301594"]
[BlackFideId "13706799"]
[WhiteElo "2518"]
[BlackElo "2044"]
[Result "1-0"]
[Round "09"]
[TimeControl "180+1"]
[Date "2021.08.31"]
[WhiteClock "0:00:08"]
[BlackClock "0:00:24"]

1. Nf3 {[%clk 0:03:00]}  d5 {[%clk 0:02:57]} 2. d4 {[%clk 0:02:56]}  Nf6 {[%clk 0:02:57]} 3. c4 {[%clk 0:02:56]}  c6 {[%clk 0:02:57]} 4. Nc3 {[%clk 0:02:56]}  dxc4 {[%clk 0:02:55]} 5. e4 {[%clk 0:02:55]}  b5 {[%clk 0:02:54]} 6. e5 {[%clk 0:02:45]}  Nd5 {[%clk 0:02:52]} 7. Ng5 {[%clk 0:02:44]}  Bf5 {[%clk 0:02:25]} 8. Qf3 {[%clk 0:02:17]}  e6 {[%clk 0:02:19]} 9. Nxf7 {[%clk 0:02:17]}  Kxf7 {[%clk 0:02:17]} 10. g4 {[%clk 0:02:17]}  g6 {[%clk 0:01:57]} 11. gxf5 {[%clk 0:02:17]}  exf5 {[%clk 0:01:57]} 12. Bg2 {[%clk 0:02:09]}  Nb4 {[%clk 0:01:29]} 13. O-O {[%clk 0:02:03]}  Nc2 {[%clk 0:01:25]} 14. e6+ {[%clk 0:01:51]}  Kg7 {[%clk 0:01:24]} 15. Rb1 {[%clk 0:00:57]}  Nxd4 {[%clk 0:01:22]} 16. Qe3 {[%clk 0:00:56]}  Qf6 {[%clk 0:01:10]} 17. Rd1 {[%clk 0:00:46]}  Bc5 {[%clk 0:00:49]} 18. Qh6+ {[%clk 0:00:44]}  Kg8 {[%clk 0:00:47]} 19. Be3 {[%clk 0:00:39]}  Nxe6 {[%clk 0:00:42]} 20. Nd5 {[%clk 0:00:20]}  Qg7 {[%clk 0:00:40]} 21. Qxg7+ {[%clk 0:00:14]}  Kxg7 {[%clk 0:00:41]} 22. Bxc5 {[%clk 0:00:14]}  Nxc5 {[%clk 0:00:41]} 23. Nc7 {[%clk 0:00:13]}  Nba6 {[%clk 0:00:39]} 24. Nxa8 {[%clk 0:00:12]}  Rxa8 {[%clk 0:00:40]} 25. Bxc6 {[%clk 0:00:13]}  Rb8 {[%clk 0:00:40]} 26. Rd5 {[%clk 0:00:13]}  Nd3 {[%clk 0:00:38]} 27. Rxb5 {[%clk 0:00:11]}  Rd8 {[%clk 0:00:36]} 28. Rb7+ {[%clk 0:00:10]}  Kh6 {[%clk 0:00:36]} 29. Bb5 {[%clk 0:00:10]}  Nac5 {[%clk 0:00:34]} 30. Rxa7 {[%clk 0:00:10]}  Ne4 {[%clk 0:00:33]} 31. Rd7 {[%clk 0:00:10]}  Rb8 {[%clk 0:00:32]} 32. Bxc4 {[%clk 0:00:10]}  Ndxf2 {[%clk 0:00:32]} 33. Bf1 {[%clk 0:00:07]}  Ng4 {[%clk 0:00:31]} 34. b4 {[%clk 0:00:07]}  Ne5 {[%clk 0:00:31]} 35. Re7 {[%clk 0:00:07]}  Nf3+ {[%clk 0:00:31]} 36. Kg2 {[%clk 0:00:07]}  Nfd2 {[%clk 0:00:31]} 37. Rb2 {[%clk 0:00:06]}  Nc4 {[%clk 0:00:30]} 38. Bxc4 {[%clk 0:00:06]}  Rc8 {[%clk 0:00:29]} 39. Rxe4 {[%clk 0:00:05]}  fxe4 {[%clk 0:00:28]} 40. Bb3 {[%clk 0:00:05]}  e3 {[%clk 0:00:27]} 41. Kf3 {[%clk 0:00:06]}  Re8 {[%clk 0:00:25]} 42. Ke2 {[%clk 0:00:06]}  Kg5 {[%clk 0:00:25]} 43. b5 {[%clk 0:00:06]}  Kf4 {[%clk 0:00:25]} 44. b6 {[%clk 0:00:06]}  Rb8 {[%clk 0:00:25]} 45. Bc4 {[%clk 0:00:06]}  Rc8 {[%clk 0:00:22]} 46. b7 {[%clk 0:00:06]}  Rb8 {[%clk 0:00:22]} 47. Be6 {[%clk 0:00:07]}  g5 {[%clk 0:00:23]} 48. Bc8 {[%clk 0:00:07]}  g4 {[%clk 0:00:22]} 49. a4 {[%clk 0:00:07]}  Ke5 {[%clk 0:00:22]} 50. a5 {[%clk 0:00:07]}  Kd4 {[%clk 0:00:22]} 51. a6 {[%clk 0:00:07]}  h5 {[%clk 0:00:23]} 52. a7 {[%clk 0:00:07]}  h4 {[%clk 0:00:23]} 53. axb8=Q {[%clk 0:00:08]}  g3 {[%clk 0:00:24]} 54. Qd6+ {[%clk 0:00:08]} 1-0


[Site "https://www.chess.com"]

[Event "Titled Tuesday Blitz August 31 2021"]
[White "Eljanov, Pavel"]
[Black "Leitao, Rafael"]
[WhiteFideId "14102951"]
[BlackFideId "2101246"]
[WhiteElo "2602"]
[BlackElo "2609"]
[Result "0-1"]
[Round "09"]
[TimeControl "180+1"]
[Date "2021.08.31"]
[WhiteClock "0:00:06"]
[BlackClock "0:00:06"]

1. Nf3 {[%clk 0:03:00]}  Nf6 {[%clk 0:02:59]} 2. g3 {[%clk 0:03:00]}  d5 {[%clk 0:02:58]} 3. Bg2 {[%clk 0:03:01]}  e6 {[%clk 0:02:58]} 4. c4 {[%clk 0:03:00]}  Be7 {[%clk 0:02:57]} 5. O-O {[%clk 0:02:59]}  O-O {[%clk 0:02:58]} 6. Ne5 {[%clk 0:03:00]}  c6 {[%clk 0:02:45]} 7. d4 {[%clk 0:02:59]}  Nfd7 {[%clk 0:02:38]} 8. Nc3 {[%clk 0:02:47]}  Nxe5 {[%clk 0:02:37]} 9. dxe5 {[%clk 0:02:47]}  dxc4 {[%clk 0:02:33]} 10. Qc2 {[%clk 0:02:36]}  Nd7 {[%clk 0:02:25]} 11. Bf4 {[%clk 0:02:36]}  Qa5 {[%clk 0:02:15]} 12. Qe4 {[%clk 0:02:18]}  b5 {[%clk 0:01:56]} 13. Qxc6 {[%clk 0:02:07]}  Rb8 {[%clk 0:01:56]} 14. Rfd1 {[%clk 0:01:46]}  Nc5 {[%clk 0:01:46]} 15. Qf3 {[%clk 0:01:25]}  Bb7 {[%clk 0:01:43]} 16. Qg4 {[%clk 0:01:25]}  Rfc8 {[%clk 0:01:29]} 17. Bxb7 {[%clk 0:01:21]}  Rxb7 {[%clk 0:01:29]} 18. Nd5 {[%clk 0:01:12]}  Bf8 {[%clk 0:00:57]} 19. Rd4 {[%clk 0:00:26]}  Kh8 {[%clk 0:00:54]} 20. Rad1 {[%clk 0:00:24]}  Rbb8 {[%clk 0:00:50]} 21. Nf6 {[%clk 0:00:20]}  gxf6 {[%clk 0:00:40]} 22. exf6 {[%clk 0:00:19]}  Ra8 {[%clk 0:00:28]} 23. Bd6 {[%clk 0:00:20]}  Bh6 {[%clk 0:00:22]} 24. Qh5 {[%clk 0:00:20]}  Rg8 {[%clk 0:00:17]} 25. Qxh6 {[%clk 0:00:19]}  Rg6 {[%clk 0:00:17]} 26. Qh5 {[%clk 0:00:19]}  Nd7 {[%clk 0:00:17]} 27. Rh4 {[%clk 0:00:18]}  h6 {[%clk 0:00:16]} 28. Bf4 {[%clk 0:00:18]}  Nxf6 {[%clk 0:00:16]} 29. Qe5 {[%clk 0:00:16]}  Rd8 {[%clk 0:00:16]} 30. Rd4 {[%clk 0:00:08]}  Rxd4 {[%clk 0:00:15]} 31. Qxd4 {[%clk 0:00:08]}  Kg7 {[%clk 0:00:13]} 32. Bxh6+ {[%clk 0:00:08]}  Kg8 {[%clk 0:00:12]} 33. Bg5 {[%clk 0:00:06]}  Qe1+ {[%clk 0:00:07]} 34. Kg2 {[%clk 0:00:06]}  Nh7 {[%clk 0:00:05]} 35. Qd8+ {[%clk 0:00:05]}  Kg7 {[%clk 0:00:06]} 36. Bd2 {[%clk 0:00:05]}  Qxe2 {[%clk 0:00:05]} 37. Bc3+ {[%clk 0:00:06]}  e5 {[%clk 0:00:06]} 38. Qd5 {[%clk 0:00:05]}  Rf6 {[%clk 0:00:06]} 39. Bxe5 {[%clk 0:00:04]}  Qxf2+ {[%clk 0:00:06]} 40. Kh3 {[%clk 0:00:05]}  Qf1+ {[%clk 0:00:05]} 41. Qg2 {[%clk 0:00:05]}  Qf5+ {[%clk 0:00:05]} 42. Rg4+ {[%clk 0:00:06]}  Ng5+ {[%clk 0:00:05]} 43. Kh4 {[%clk 0:00:06]}  Qh7+ {[%clk 0:00:05]} 44. Kxg5 {[%clk 0:00:06]}  Qh6# {[%clk 0:00:06]} 0-1


[Site "https://www.chess.com"]

[Event "Titled Tuesday Blitz August 31 2021"]
[White "Fier, Alexandr"]
[Black "Martin Duque, Jesus"]
[WhiteFideId "2107139"]
[BlackFideId "2208954"]
[WhiteElo "2569"]
[BlackElo "2224"]
[Result "1-0"]
[Round "09"]
[TimeControl "180+1"]
[Date "2021.08.31"]
[WhiteClock "0:00:48"]
[BlackClock "0:00:04"]

1. d4 {[%clk 0:02:51]}  Nf6 {[%clk 0:02:59]} 2. Bg5 {[%clk 0:02:50]}  b6 {[%clk 0:02:59]} 3. Bxf6 {[%clk 0:02:49]}  exf6 {[%clk 0:03:00]} 4. e4 {[%clk 0:02:49]}  Bb7 {[%clk 0:03:00]} 5. Nc3 {[%clk 0:02:49]}  g6 {[%clk 0:03:00]} 6. Bd3 {[%clk 0:02:48]}  Bg7 {[%clk 0:03:00]} 7. h4 {[%clk 0:02:49]}  h5 {[%clk 0:02:59]} 8. f4 {[%clk 0:02:46]}  O-O {[%clk 0:02:49]} 9. Nf3 {[%clk 0:02:46]}  Re8 {[%clk 0:02:38]} 10. Kf2 {[%clk 0:02:41]}  d6 {[%clk 0:02:34]} 11. Qd2 {[%clk 0:02:40]}  Nd7 {[%clk 0:02:34]} 12. Rag1 {[%clk 0:02:40]}  f5 {[%clk 0:02:25]} 13. exf5 {[%clk 0:02:38]}  Nf6 {[%clk 0:02:21]} 14. fxg6 {[%clk 0:02:37]}  Ng4+ {[%clk 0:02:20]} 15. Kg3 {[%clk 0:02:37]}  Rf8 {[%clk 0:02:03]} 16. gxf7+ {[%clk 0:02:35]}  Rxf7 {[%clk 0:02:03]} 17. Bg6 {[%clk 0:02:31]}  Rf6 {[%clk 0:01:38]} 18. Bxh5 {[%clk 0:02:30]}  Nh6 {[%clk 0:01:38]} 19. Ng5 {[%clk 0:02:20]}  Qf8 {[%clk 0:01:28]} 20. Re1 {[%clk 0:02:16]}  Nf5+ {[%clk 0:01:19]} 21. Kh3 {[%clk 0:02:17]}  Rh6 {[%clk 0:01:14]} 22. g4 {[%clk 0:02:02]}  Nxd4 {[%clk 0:01:14]} 23. Bf7+ {[%clk 0:01:57]}  Kh8 {[%clk 0:01:13]} 24. Nce4 {[%clk 0:01:57]}  Nf3 {[%clk 0:00:55]} 25. Nxf3 {[%clk 0:01:48]}  Qxf7 {[%clk 0:00:55]} 26. Nfg5 {[%clk 0:01:48]}  Qg6 {[%clk 0:00:48]} 27. h5 {[%clk 0:01:45]}  Rf8 {[%clk 0:00:43]} 28. Kg3 {[%clk 0:01:42]}  Qe8 {[%clk 0:00:31]} 29. Qd3 {[%clk 0:01:31]}  Qc6 {[%clk 0:00:17]} 30. Rh2 {[%clk 0:01:28]}  d5 {[%clk 0:00:18]} 31. Nd2 {[%clk 0:01:18]}  Qd6 {[%clk 0:00:17]} 32. Rf2 {[%clk 0:01:12]}  c5 {[%clk 0:00:17]} 33. Re8 {[%clk 0:01:06]}  c4 {[%clk 0:00:15]} 34. Nf7+ {[%clk 0:01:06]}  Kg8 {[%clk 0:00:13]} 35. Nxd6 {[%clk 0:01:05]}  cxd3 {[%clk 0:00:09]} 36. Rxf8+ {[%clk 0:01:05]}  Kxf8 {[%clk 0:00:07]} 37. Nxb7 {[%clk 0:01:06]}  dxc2 {[%clk 0:00:08]} 38. Rf1 {[%clk 0:01:07]}  Bxb2 {[%clk 0:00:07]} 39. Nb3 {[%clk 0:01:07]}  Rc6 {[%clk 0:00:07]} 40. g5 {[%clk 0:01:00]}  a5 {[%clk 0:00:07]} 41. h6 {[%clk 0:01:00]}  a4 {[%clk 0:00:07]} 42. Nc1 {[%clk 0:01:00]}  d4 {[%clk 0:00:08]} 43. Nd3 {[%clk 0:00:59]}  Rc3 {[%clk 0:00:08]} 44. h7 {[%clk 0:00:48]}  Kg7 {[%clk 0:00:08]} 45. Rh1 {[%clk 0:00:48]}  Rxd3+ {[%clk 0:00:08]} 46. Kg4 {[%clk 0:00:48]}  Kh8 {[%clk 0:00:09]} 47. g6 {[%clk 0:00:48]}  Rh3 {[%clk 0:00:02]} 48. Rxh3 {[%clk 0:00:47]}  c1=Q {[%clk 0:00:02]} 49. g7+ {[%clk 0:00:48]}  Kxg7 {[%clk 0:00:02]} 50. h8=Q+ {[%clk 0:00:48]}  Kf7 {[%clk 0:00:03]} 51. Rh7+ {[%clk 0:00:49]}  Ke6 {[%clk 0:00:04]} 52. Qe5# {[%clk 0:00:48]} 1-0


[Site "https://www.chess.com"]

[Event "Titled Tuesday Blitz August 31 2021"]
[White "Gabrielian, Artur"]
[Black "Seemann, Jakub"]
[WhiteFideId "4131002"]
[BlackFideId "21874697"]
[WhiteElo "2513"]
[BlackElo "1805"]
[Result "1-0"]
[Round "09"]
[TimeControl "180+1"]
[Date "2021.08.31"]
[WhiteClock "0:00:20"]
[BlackClock "0:00:20"]

1. e4 {[%clk 0:03:00]}  c5 {[%clk 0:02:57]} 2. Nf3 {[%clk 0:03:00]}  d6 {[%clk 0:02:56]} 3. d4 {[%clk 0:03:00]}  cxd4 {[%clk 0:02:57]} 4. Nxd4 {[%clk 0:03:00]}  Nf6 {[%clk 0:02:57]} 5. Nc3 {[%clk 0:03:00]}  a6 {[%clk 0:02:57]} 6. Bg5 {[%clk 0:03:00]}  e6 {[%clk 0:02:52]} 7. f4 {[%clk 0:03:00]}  h6 {[%clk 0:02:52]} 8. Bh4 {[%clk 0:02:59]}  Be7 {[%clk 0:02:53]} 9. Qf3 {[%clk 0:02:57]}  Qc7 {[%clk 0:02:54]} 10. O-O-O {[%clk 0:02:56]}  Nbd7 {[%clk 0:02:53]} 11. g4 {[%clk 0:02:53]}  g5 {[%clk 0:02:53]} 12. fxg5 {[%clk 0:02:49]}  Ne5 {[%clk 0:02:53]} 13. Qe2 {[%clk 0:02:49]}  Nfxg4 {[%clk 0:02:53]} 14. Kb1 {[%clk 0:02:33]}  hxg5 {[%clk 0:02:52]} 15. Bg3 {[%clk 0:02:33]}  Bd7 {[%clk 0:02:50]} 16. Rg1 {[%clk 0:02:24]}  O-O-O {[%clk 0:02:49]} 17. Nf5 {[%clk 0:02:22]}  Bf8 {[%clk 0:02:39]} 18. h3 {[%clk 0:02:17]}  exf5 {[%clk 0:02:38]} 19. hxg4 {[%clk 0:02:17]}  f4 {[%clk 0:02:39]} 20. Nd5 {[%clk 0:02:12]}  Qc6 {[%clk 0:02:32]} 21. Bf2 {[%clk 0:02:12]}  Be6 {[%clk 0:02:32]} 22. Bd4 {[%clk 0:01:52]}  Bxd5 {[%clk 0:02:28]} 23. exd5 {[%clk 0:01:51]}  Qc7 {[%clk 0:02:23]} 24. Bg2 {[%clk 0:01:45]}  Bg7 {[%clk 0:02:23]} 25. Be4 {[%clk 0:01:36]}  Kb8 {[%clk 0:02:15]} 26. c3 {[%clk 0:01:33]}  Rhe8 {[%clk 0:02:14]} 27. Qc2 {[%clk 0:01:33]}  Bh8 {[%clk 0:02:05]} 28. Qb3 {[%clk 0:01:25]}  Nc4 {[%clk 0:02:03]} 29. Bxh8 {[%clk 0:01:22]}  Rxh8 {[%clk 0:02:04]} 30. Rd4 {[%clk 0:01:18]}  Ne3 {[%clk 0:02:02]} 31. Bd3 {[%clk 0:01:11]}  Ka7 {[%clk 0:01:57]} 32. Rc1 {[%clk 0:01:03]}  Qc5 {[%clk 0:01:53]} 33. Rb4 {[%clk 0:01:02]}  Rb8 {[%clk 0:01:53]} 34. Qa4 {[%clk 0:00:57]}  Nxd5 {[%clk 0:01:38]} 35. Rb5 {[%clk 0:00:56]}  Qc6 {[%clk 0:01:01]} 36. Qd4+ {[%clk 0:00:53]}  Nb6 {[%clk 0:00:58]} 37. Rxg5 {[%clk 0:00:53]}  Rh2 {[%clk 0:00:34]} 38. Rf5 {[%clk 0:00:46]}  Qg2 {[%clk 0:00:30]} 39. Bc2 {[%clk 0:00:42]}  Rh1 {[%clk 0:00:29]} 40. a4 {[%clk 0:00:35]}  Rxc1+ {[%clk 0:00:26]} 41. Kxc1 {[%clk 0:00:35]}  Qf1+ {[%clk 0:00:23]} 42. Bd1 {[%clk 0:00:34]}  Qc4 {[%clk 0:00:15]} 43. Rxf4 {[%clk 0:00:27]}  Qxd4 {[%clk 0:00:15]} 44. Rxd4 {[%clk 0:00:27]}  Rd8 {[%clk 0:00:14]} 45. Bb3 {[%clk 0:00:26]}  f6 {[%clk 0:00:13]} 46. a5 {[%clk 0:00:24]}  Nc8 {[%clk 0:00:12]} 47. Rf4 {[%clk 0:00:24]}  Rf8 {[%clk 0:00:06]} 48. g5 {[%clk 0:00:25]}  f5 {[%clk 0:00:06]} 49. g6 {[%clk 0:00:25]}  Ne7 {[%clk 0:00:07]} 50. g7 {[%clk 0:00:25]}  Rd8 {[%clk 0:00:04]} 51. Be6 {[%clk 0:00:23]}  d5 {[%clk 0:00:04]} 52. Rh4 {[%clk 0:00:18]}  Kb8 {[%clk 0:00:01]} 53. Rh8 {[%clk 0:00:17]}  Kc7 {[%clk 0:00:02]} 54. Rxd8 {[%clk 0:00:16]}  Kxd8 {[%clk 0:00:03]} 55. Bxd5 {[%clk 0:00:17]}  Kc7 {[%clk 0:00:02]} 56. g8=Q {[%clk 0:00:17]}  Nxg8 {[%clk 0:00:02]} 57. Bxg8 {[%clk 0:00:17]}  b6 {[%clk 0:00:03]} 58. axb6+ {[%clk 0:00:17]}  Kxb6 {[%clk 0:00:04]} 59. Kc2 {[%clk 0:00:18]}  Kc5 {[%clk 0:00:05]} 60. b4+ {[%clk 0:00:18]}  Kc6 {[%clk 0:00:05]} 61. Kd3 {[%clk 0:00:18]}  Kb6 {[%clk 0:00:06]} 62. c4 {[%clk 0:00:18]}  a5 {[%clk 0:00:07]} 63. bxa5+ {[%clk 0:00:18]}  Kxa5 {[%clk 0:00:08]} 64. Kd4 {[%clk 0:00:19]}  Kb6 {[%clk 0:00:09]} 65. c5+ {[%clk 0:00:19]}  Kc7 {[%clk 0:00:10]} 66. Bd5 {[%clk 0:00:19]}  f4 {[%clk 0:00:11]} 67. Bf3 {[%clk 0:00:19]}  Kd7 {[%clk 0:00:11]} 68. Kd5 {[%clk 0:00:19]}  Kc7 {[%clk 0:00:12]} 69. Ke5 {[%clk 0:00:19]}  Kd8 {[%clk 0:00:13]} 70. Kxf4 {[%clk 0:00:20]}  Kc7 {[%clk 0:00:13]} 71. Ke5 {[%clk 0:00:20]}  Kc8 {[%clk 0:00:14]} 72. Kd6 {[%clk 0:00:21]}  Kd8 {[%clk 0:00:15]} 73. Bg4 {[%clk 0:00:20]}  Ke8 {[%clk 0:00:15]} 74. Be6 {[%clk 0:00:20]}  Kf8 {[%clk 0:00:15]} 75. c6 {[%clk 0:00:21]}  Ke8 {[%clk 0:00:16]} 76. c7 {[%clk 0:00:20]}  Kf8 {[%clk 0:00:17]} 77. c8=Q+ {[%clk 0:00:20]}  Kg7 {[%clk 0:00:18]} 78. Qg8+ {[%clk 0:00:20]}  Kf6 {[%clk 0:00:19]} 79. Qf7+ {[%clk 0:00:20]}  Kg5 {[%clk 0:00:19]} 80. Qg7+ {[%clk 0:00:20]}  Kh4 {[%clk 0:00:20]} 81. Qg4# {[%clk 0:00:20]} 1-0


[Site "https://www.chess.com"]

[Event "Titled Tuesday Blitz August 31 2021"]
[White "Goryachkina, Aleksandra"]
[Black "Stelmaszyk, Nico"]
[WhiteFideId "4147103"]
[BlackFideId "16200462"]
[WhiteElo "2441"]
[BlackElo "2119"]
[Result "1-0"]
[Round "09"]
[TimeControl "180+1"]
[Date "2021.08.31"]
[WhiteClock "0:02:08"]
[BlackClock "0:01:58"]

1. e4 {[%clk 0:03:00]}  e5 {[%clk 0:02:56]} 2. Nf3 {[%clk 0:03:00]}  Nf6 {[%clk 0:02:56]} 3. Nxe5 {[%clk 0:02:57]}  Nxe4 {[%clk 0:02:56]} 4. Qe2 {[%clk 0:02:53]}  Qe7 {[%clk 0:02:57]} 5. Qxe4 {[%clk 0:02:53]}  d6 {[%clk 0:02:58]} 6. d4 {[%clk 0:02:53]}  dxe5 {[%clk 0:02:59]} 7. dxe5 {[%clk 0:02:53]}  Nc6 {[%clk 0:02:59]} 8. Nc3 {[%clk 0:02:46]}  Qxe5 {[%clk 0:02:58]} 9. Qxe5+ {[%clk 0:02:45]}  Nxe5 {[%clk 0:02:59]} 10. Nb5 {[%clk 0:02:38]}  Bb4+ {[%clk 0:02:58]} 11. c3 {[%clk 0:02:38]}  Ba5 {[%clk 0:02:58]} 12. Bf4 {[%clk 0:02:36]}  f6 {[%clk 0:02:33]} 13. Bxe5 {[%clk 0:02:22]}  fxe5 {[%clk 0:02:33]} 14. Bd3 {[%clk 0:02:20]}  Bd7 {[%clk 0:02:28]} 15. Na3 {[%clk 0:02:19]}  O-O-O {[%clk 0:02:28]} 16. O-O {[%clk 0:02:13]}  Bb6 {[%clk 0:02:18]} 17. Nc4 {[%clk 0:02:09]}  Bb5 {[%clk 0:01:58]} 18. Nxb6+ {[%clk 0:02:08]} 1-0


[Site "https://www.chess.com"]

[Event "Titled Tuesday Blitz August 31 2021"]
[White "Harshavardhan G B"]
[Black "Obolentseva, Alexandra"]
[WhiteFideId "25059009"]
[BlackFideId "24153648"]
[WhiteElo "1825"]
[BlackElo "2113"]
[Result "1-0"]
[Round "09"]
[TimeControl "180+1"]
[Date "2021.08.31"]
[WhiteClock "0:01:48"]
[BlackClock "0:00:01"]

1. f4 {[%clk 0:03:00]}  d5 {[%clk 0:02:58]} 2. Nf3 {[%clk 0:03:00]}  c5 {[%clk 0:02:57]} 3. g3 {[%clk 0:02:58]}  Nc6 {[%clk 0:02:56]} 4. Bg2 {[%clk 0:02:57]}  Nf6 {[%clk 0:02:55]} 5. O-O {[%clk 0:02:52]}  g6 {[%clk 0:02:54]} 6. d3 {[%clk 0:02:53]}  Bg7 {[%clk 0:02:51]} 7. Nbd2 {[%clk 0:02:54]}  O-O {[%clk 0:02:50]} 8. h3 {[%clk 0:02:50]}  Re8 {[%clk 0:02:44]} 9. e4 {[%clk 0:02:49]}  dxe4 {[%clk 0:02:43]} 10. dxe4 {[%clk 0:02:50]}  b5 {[%clk 0:02:27]} 11. e5 {[%clk 0:02:45]}  Nd5 {[%clk 0:02:23]} 12. Ne4 {[%clk 0:02:43]}  c4 {[%clk 0:02:17]} 13. Kh2 {[%clk 0:02:41]}  Bf5 {[%clk 0:02:05]} 14. Nh4 {[%clk 0:02:39]}  Bxe4 {[%clk 0:01:43]} 15. Bxe4 {[%clk 0:02:40]}  e6 {[%clk 0:01:42]} 16. Nf3 {[%clk 0:02:37]}  Rc8 {[%clk 0:01:37]} 17. Bd2 {[%clk 0:02:32]}  Qb6 {[%clk 0:01:31]} 18. Qe2 {[%clk 0:02:26]}  Rcd8 {[%clk 0:01:27]} 19. Rad1 {[%clk 0:02:22]}  Bf8 {[%clk 0:01:14]} 20. c3 {[%clk 0:02:20]}  Bc5 {[%clk 0:01:10]} 21. Ng5 {[%clk 0:02:18]}  Nce7 {[%clk 0:01:08]} 22. Qg4 {[%clk 0:02:16]}  Ne3 {[%clk 0:00:51]} 23. Bxe3 {[%clk 0:02:14]}  Bxe3 {[%clk 0:00:50]} 24. Qh4 {[%clk 0:02:07]}  h5 {[%clk 0:00:46]} 25. Nxf7 {[%clk 0:01:58]}  Rxd1 {[%clk 0:00:33]} 26. Rxd1 {[%clk 0:01:54]}  Kxf7 {[%clk 0:00:31]} 27. Qf6+ {[%clk 0:01:52]}  Kg8 {[%clk 0:00:30]} 28. Bxg6 {[%clk 0:01:51]}  Rf8 {[%clk 0:00:13]} 29. Qxe7 {[%clk 0:01:49]}  Bg1+ {[%clk 0:00:04]} 30. Rxg1 {[%clk 0:01:47]}  Qf2+ {[%clk 0:00:01]} 31. Rg2 {[%clk 0:01:48]} 1-0


[Site "https://www.chess.com"]